[Event "Late-Titled-Tuesday-Blitz-June-04-2024"]
[Site "Chess.com"]
[Date "2024.06.04"]
[Round "10"]
[White "Jagerrmeisterr"]
[Black "SaraciNderim"]
[Result "1-0"]
[WhiteElo "2695"]
[BlackElo "2870"]
[TimeControl "180+1"]
[EndTime "15:54:34 PDT"]
[Termination "Jagerrmeisterr won by resignation"]

1. e4 {[%clk 0:03:00.9]} 1... c6 {[%clk 0:02:58.1]} 2. Nc3 {[%clk 0:03:00.5]}
2... e5 {[%clk 0:02:53.1]} 3. d4 {[%clk 0:02:48.7]} 3... d6 {[%clk 0:02:53.4]}
4. Nf3 {[%clk 0:02:41.7]} 4... Qc7 {[%clk 0:02:48.5]} 5. Bc4 {[%clk 0:02:38]}
5... Be7 {[%clk 0:02:48.3]} 6. a4 {[%clk 0:02:36.5]} 6... Nf6 {[%clk 0:02:47.5]}
7. h3 {[%clk 0:02:28.3]} 7... O-O {[%clk 0:02:46.2]} 8. O-O {[%clk 0:02:22.4]}
8... Nbd7 {[%clk 0:02:46.3]} 9. Ba2 {[%clk 0:02:19.1]} 9... b6 {[%clk
0:02:40.5]} 10. Re1 {[%clk 0:02:16.4]} 10... a5 {[%clk 0:02:39.2]} 11. Bg5
{[%clk 0:02:09.4]} 11... h6 {[%clk 0:02:38.1]} 12. Bh4 {[%clk 0:02:09.3]} 12...
Re8 {[%clk 0:02:36.8]} 13. Bg3 {[%clk 0:02:06.8]} 13... Bf8 {[%clk 0:02:34.9]}
14. Nh4 {[%clk 0:01:51.2]} 14... exd4 {[%clk 0:02:32.2]} 15. Qxd4 {[%clk
0:01:51]} 15... Nc5 {[%clk 0:02:28.4]} 16. Ng6 {[%clk 0:01:30.6]} 16... Ne6
{[%clk 0:02:04.7]} 17. Bxe6 {[%clk 0:01:27.1]} 17... Rxe6 {[%clk 0:02:05.6]} 18.
Nxf8 {[%clk 0:01:25.8]} 18... Kxf8 {[%clk 0:02:06.5]} 19. Rad1 {[%clk
0:01:23.5]} 19... Ne8 {[%clk 0:02:01.2]} 20. f4 {[%clk 0:01:15.8]} 20... c5
{[%clk 0:01:26.9]} 21. Qf2 {[%clk 0:01:09.3]} 21... Bb7 {[%clk 0:01:21.5]} 22.
f5 {[%clk 0:01:07.4]} 22... Re7 {[%clk 0:01:21.3]} 23. Nb5 {[%clk 0:01:06.2]}
23... Qc6 {[%clk 0:01:15.2]} 24. Bxd6 {[%clk 0:00:53]} 24... Nxd6 {[%clk
0:01:14.9]} 25. Rxd6 {[%clk 0:00:52]} 25... Qe8 {[%clk 0:01:13.4]} 26. f6 {[%clk
0:00:35.4]} 26... Rxe4 {[%clk 0:01:10]} 27. fxg7+ {[%clk 0:00:29.7]} 27... Kg8
{[%clk 0:01:09.4]} 28. Rxe4 {[%clk 0:00:24.7]} 28... Bxe4 {[%clk 0:00:59.4]} 29.
Rxh6 {[%clk 0:00:20.4]} 29... Bh7 {[%clk 0:00:56.1]} 30. Nc7 {[%clk 0:00:18.3]}
30... Qxa4 {[%clk 0:00:30.8]} 31. Nxa8 {[%clk 0:00:16.5]} 31... Qa1+ {[%clk
0:00:31.3]} 32. Kh2 {[%clk 0:00:16.4]} 32... Qxb2 {[%clk 0:00:32]} 33. Nxb6
{[%clk 0:00:14.9]} 33... Kxg7 {[%clk 0:00:26.7]} 34. Rd6 {[%clk 0:00:12.6]}
34... Qe5+ {[%clk 0:00:23.3]} 35. Qg3+ {[%clk 0:00:12.8]} 35... Qxg3+ {[%clk
0:00:23.9]} 36. Kxg3 {[%clk 0:00:13.4]} 36... Bxc2 {[%clk 0:00:24.8]} 37. Rc6
{[%clk 0:00:13.1]} 37... a4 {[%clk 0:00:25.4]} 38. Rxc5 {[%clk 0:00:13.4]} 38...
Bb3 {[%clk 0:00:26.1]} 39. Ra5 {[%clk 0:00:13.8]} 1-0

[Event "Late-Titled-Tuesday-Blitz-June-04-2024"]
[Site "Chess.com"]
[Date "2024.06.04"]
[Round "10"]
[White "WilliamAlfaroCaracas"]
[Black "VirtualCoach"]
[Result "1-0"]
[WhiteElo "2383"]
[BlackElo "2229"]
[TimeControl "180+1"]
[EndTime "15:54:34 PDT"]
[Termination "WilliamAlfaroCaracas won by resignation"]

1. Nf3 {[%clk 0:02:54.6]} 1... c5 {[%clk 0:02:58.4]} 2. c4 {[%clk 0:02:50.6]}
2... Nc6 {[%clk 0:02:56]} 3. Nc3 {[%clk 0:02:48]} 3... g6 {[%clk 0:02:53.4]} 4.
g3 {[%clk 0:02:45.9]} 4... Bg7 {[%clk 0:02:53.6]} 5. Bg2 {[%clk 0:02:45.8]} 5...
e6 {[%clk 0:02:53]} 6. O-O {[%clk 0:02:44.8]} 6... Nge7 {[%clk 0:02:53.4]} 7. a3
{[%clk 0:02:44.8]} 7... O-O {[%clk 0:02:52.5]} 8. Rb1 {[%clk 0:02:43.8]} 8... d5
{[%clk 0:02:50.7]} 9. cxd5 {[%clk 0:02:20.1]} 9... exd5 {[%clk 0:02:51.6]} 10.
d3 {[%clk 0:02:17.2]} 10... a5 {[%clk 0:02:48.2]} 11. Bf4 {[%clk 0:02:14.1]}
11... Nd4 {[%clk 0:02:22.1]} 12. Rc1 {[%clk 0:01:58.6]} 12... Nxf3+ {[%clk
0:02:04]} 13. Bxf3 {[%clk 0:01:59.5]} 13... Be6 {[%clk 0:02:03.7]} 14. Nb5
{[%clk 0:01:52.7]} 14... Rc8 {[%clk 0:02:00.1]} 15. Na7 {[%clk 0:01:51.6]} 15...
Ra8 {[%clk 0:01:54.7]} 16. Nb5 {[%clk 0:01:51]} 16... Bxb2 {[%clk 0:01:13.9]}
17. Rb1 {[%clk 0:01:45.6]} 17... Bg7 {[%clk 0:01:12]} 18. Nc7 {[%clk 0:01:25.3]}
18... Rc8 {[%clk 0:01:09.1]} 19. Rxb7 {[%clk 0:01:13.4]} 19... Nc6 {[%clk
0:00:53.1]} 20. Nxe6 {[%clk 0:01:04.2]} 20... fxe6 {[%clk 0:00:54]} 21. Bg4
{[%clk 0:01:03.9]} 21... Re8 {[%clk 0:00:40.7]} 22. Qd2 {[%clk 0:00:38.5]} 22...
Nd4 {[%clk 0:00:26.5]} 23. Bh6 {[%clk 0:00:36.1]} 23... Qf6 {[%clk 0:00:18.7]}
24. Bxg7 {[%clk 0:00:29.6]} 24... Qxg7 {[%clk 0:00:11.2]} 25. Rxg7+ {[%clk
0:00:30.5]} 25... Kxg7 {[%clk 0:00:12.1]} 26. e3 {[%clk 0:00:28.6]} 26... Nf5
{[%clk 0:00:11.7]} 27. Rb1 {[%clk 0:00:23.2]} 27... Rb8 {[%clk 0:00:11.1]} 28.
Rxb8 {[%clk 0:00:19.6]} 28... Rxb8 {[%clk 0:00:12]} 29. Bxf5 {[%clk 0:00:19.8]}
29... gxf5 {[%clk 0:00:11.9]} 30. Qxa5 {[%clk 0:00:20.7]} 30... Rb1+ {[%clk
0:00:11.3]} 31. Kg2 {[%clk 0:00:20.4]} 31... Rc1 {[%clk 0:00:12.2]} 32. Qc7+
{[%clk 0:00:19.3]} 32... Kf6 {[%clk 0:00:12.2]} 33. Qd8+ {[%clk 0:00:18.9]}
33... Kg6 {[%clk 0:00:11.8]} 34. Qe7 {[%clk 0:00:15.4]} 1-0

[Event "Late-Titled-Tuesday-Blitz-June-04-2024"]
[Site "Chess.com"]
[Date "2024.06.04"]
[Round "10"]
[White "FischerKasparow"]
[Black "JaackCamel"]
[Result "1-0"]
[WhiteElo "2104"]
[BlackElo "2218"]
[TimeControl "180+1"]
[EndTime "15:54:36 PDT"]
[Termination "FischerKasparow won on time"]

1. e4 {[%clk 0:02:51.2]} 1... e6 {[%clk 0:02:55.3]} 2. d4 {[%clk 0:02:47.1]}
2... d5 {[%clk 0:02:55]} 3. Nc3 {[%clk 0:02:47.6]} 3... Bb4 {[%clk 0:02:54]} 4.
e5 {[%clk 0:02:46.5]} 4... Ne7 {[%clk 0:02:53]} 5. Nf3 {[%clk 0:02:42.9]} 5...
O-O {[%clk 0:02:47.7]} 6. Bd3 {[%clk 0:02:40.1]} 6... f6 {[%clk 0:02:35.6]} 7.
O-O {[%clk 0:02:32.2]} 7... c5 {[%clk 0:02:34.8]} 8. Nb5 {[%clk 0:02:25.3]} 8...
c4 {[%clk 0:02:30.7]} 9. Be2 {[%clk 0:02:18.5]} 9... a6 {[%clk 0:02:30.3]} 10.
Nc3 {[%clk 0:02:09.7]} 10... Nbc6 {[%clk 0:02:23.7]} 11. exf6 {[%clk 0:02:08.4]}
11... gxf6 {[%clk 0:02:23]} 12. Bh6 {[%clk 0:02:07.4]} 12... Rf7 {[%clk
0:02:22.1]} 13. a3 {[%clk 0:01:58.9]} 13... Ba5 {[%clk 0:02:21.2]} 14. Na4
{[%clk 0:01:56.8]} 14... Bc7 {[%clk 0:02:12]} 15. Nh4 {[%clk 0:01:49.1]} 15...
Ng6 {[%clk 0:01:51.5]} 16. Bh5 {[%clk 0:01:42]} 16... Nce7 {[%clk 0:00:55.2]}
17. Nf3 {[%clk 0:01:22.9]} 17... Kh8 {[%clk 0:00:41.5]} 18. Re1 {[%clk
0:01:21.6]} 18... Bd7 {[%clk 0:00:39.8]} 19. Nc5 {[%clk 0:01:20.3]} 19... b6
{[%clk 0:00:27.4]} 20. Nxe6 {[%clk 0:01:15.7]} 20... Bxe6 {[%clk 0:00:27.4]} 21.
Rxe6 {[%clk 0:01:16.1]} 21... Qd7 {[%clk 0:00:22.6]} 22. Qe2 {[%clk 0:01:14.2]}
22... Rg8 {[%clk 0:00:20.1]} 23. Kh1 {[%clk 0:01:12.6]} 23... Bf4 {[%clk
0:00:15.7]} 24. Bxg6 {[%clk 0:00:38.4]} 24... Nxg6 {[%clk 0:00:15.1]} 25. Nh4
{[%clk 0:00:25.2]} 25... Bxh6 {[%clk 0:00:12.8]} 26. Nxg6+ {[%clk 0:00:24.8]}
26... hxg6 {[%clk 0:00:12.2]} 27. Re1 {[%clk 0:00:21.5]} 27... Kg7 {[%clk
0:00:11]} 28. Qg4 {[%clk 0:00:19.8]} 28... Rd8 {[%clk 0:00:07.9]} 29. h4 {[%clk
0:00:16.6]} 29... Rdf8 {[%clk 0:00:04.4]} 30. h5 {[%clk 0:00:16.3]} 30... g5
{[%clk 0:00:02.1]} 31. Qf5 {[%clk 0:00:16.2]} 1-0

[Event "Late-Titled-Tuesday-Blitz-June-04-2024"]
[Site "Chess.com"]
[Date "2024.06.04"]
[Round "10"]
[White "Arteler"]
[Black "katharinareinecke"]
[Result "1/2-1/2"]
[WhiteElo "2224"]
[BlackElo "1998"]
[TimeControl "180+1"]
[EndTime "15:54:37 PDT"]
[Termination "Game drawn by repetition"]

1. Nf3 {[%clk 0:03:00.9]} 1... d5 {[%clk 0:02:59]} 2. c4 {[%clk 0:03:00.9]} 2...
e6 {[%clk 0:02:56.6]} 3. d4 {[%clk 0:03:00.1]} 3... Nf6 {[%clk 0:02:46]} 4. Nc3
{[%clk 0:03:00.3]} 4... c6 {[%clk 0:02:45.7]} 5. Bg5 {[%clk 0:02:59.7]} 5... Be7
{[%clk 0:02:45.5]} 6. e3 {[%clk 0:02:59.9]} 6... O-O {[%clk 0:02:45.9]} 7. cxd5
{[%clk 0:03:00]} 7... cxd5 {[%clk 0:02:44]} 8. Bd3 {[%clk 0:02:59.9]} 8... a6
{[%clk 0:02:41.7]} 9. O-O {[%clk 0:02:56]} 9... b5 {[%clk 0:02:41.7]} 10. Rc1
{[%clk 0:02:54.8]} 10... Bb7 {[%clk 0:02:41.7]} 11. a3 {[%clk 0:02:54.5]} 11...
Nc6 {[%clk 0:02:41.7]} 12. b4 {[%clk 0:02:53.7]} 12... Rc8 {[%clk 0:02:41.1]}
13. Nd2 {[%clk 0:02:52.7]} 13... h6 {[%clk 0:02:35.9]} 14. Bh4 {[%clk
0:02:52.4]} 14... Qd7 {[%clk 0:02:30.3]} 15. Nb3 {[%clk 0:02:51]} 15... Ne8
{[%clk 0:02:13.6]} 16. Bxe7 {[%clk 0:02:49.1]} 16... Qxe7 {[%clk 0:02:02.2]} 17.
Nc5 {[%clk 0:02:49.4]} 17... Nd6 {[%clk 0:01:57.3]} 18. a4 {[%clk 0:02:22.8]}
18... bxa4 {[%clk 0:01:49.8]} 19. Qxa4 {[%clk 0:02:20]} 19... Nc4 {[%clk
0:01:43.9]} 20. Bxc4 {[%clk 0:02:18.5]} 20... dxc4 {[%clk 0:01:43.5]} 21. Ne2
{[%clk 0:02:08.5]} 21... e5 {[%clk 0:01:27.7]} 22. Nxb7 {[%clk 0:01:55]} 22...
Qxb7 {[%clk 0:01:24.3]} 23. Rxc4 {[%clk 0:01:54.4]} 23... exd4 {[%clk 0:01:24]}
24. Nxd4 {[%clk 0:01:51.5]} 24... Nxd4 {[%clk 0:01:22.5]} 25. Rxd4 {[%clk
0:01:52.4]} 25... Rc6 {[%clk 0:01:12.8]} 26. Rfd1 {[%clk 0:01:44.6]} 26... Rg6
{[%clk 0:01:11.4]} 27. g3 {[%clk 0:01:38.3]} 27... Qf3 {[%clk 0:01:07]} 28. Ra1
{[%clk 0:01:25.9]} 28... Rf6 {[%clk 0:01:04.3]} 29. Rf4 {[%clk 0:01:23.3]} 29...
Rxf4 {[%clk 0:01:01.1]} 30. exf4 {[%clk 0:01:24.2]} 30... Ra8 {[%clk 0:00:55.1]}
31. Qd1 {[%clk 0:01:19.4]} 31... Qc3 {[%clk 0:00:44.4]} 32. Qa4 {[%clk
0:01:03.1]} 32... Qf3 {[%clk 0:00:37.9]} 33. Ra3 {[%clk 0:00:59.4]} 33... Qb7
{[%clk 0:00:32.4]} 34. Re3 {[%clk 0:00:43.4]} 34... Rc8 {[%clk 0:00:27.3]} 35.
Re1 {[%clk 0:00:37.8]} 35... g6 {[%clk 0:00:21]} 36. Re8+ {[%clk 0:00:33.4]}
36... Rxe8 {[%clk 0:00:19.9]} 37. Qxe8+ {[%clk 0:00:34.3]} 37... Kh7 {[%clk
0:00:19.1]} 38. Qa4 {[%clk 0:00:34.7]} 38... h5 {[%clk 0:00:17.5]} 39. Qa5
{[%clk 0:00:34.1]} 39... Kg7 {[%clk 0:00:15.9]} 40. Qe5+ {[%clk 0:00:33.7]}
40... Kh7 {[%clk 0:00:15.6]} 41. Qc5 {[%clk 0:00:32.3]} 41... Kg7 {[%clk
0:00:14.4]} 42. Qe5+ {[%clk 0:00:32.2]} 42... Kh7 {[%clk 0:00:14.6]} 43. Qc5
{[%clk 0:00:32.2]} 43... Kg7 {[%clk 0:00:15]} 44. Qe5+ {[%clk 0:00:30.3]}
1/2-1/2

[Event "Late-Titled-Tuesday-Blitz-June-04-2024"]
[Site "Chess.com"]
[Date "2024.06.04"]
[Round "10"]
[White "Darkbluelord"]
[Black "janhelmer03"]
[Result "0-1"]
[WhiteElo "2127"]
[BlackElo "2364"]
[TimeControl "180+1"]
[EndTime "15:54:39 PDT"]
[Termination "janhelmer03 won by checkmate"]

1. e4 {[%clk 0:03:00.9]} 1... c5 {[%clk 0:02:49.4]} 2. Nc3 {[%clk 0:03:00.2]}
2... g6 {[%clk 0:02:48.7]} 3. f4 {[%clk 0:02:59]} 3... Bg7 {[%clk 0:02:48.7]} 4.
Nf3 {[%clk 0:02:59.6]} 4... Nc6 {[%clk 0:02:48.8]} 5. Bc4 {[%clk 0:03:00.1]}
5... d6 {[%clk 0:02:49.1]} 6. f5 {[%clk 0:02:57.8]} 6... Nf6 {[%clk 0:02:45]} 7.
O-O {[%clk 0:02:56.1]} 7... O-O {[%clk 0:02:43.7]} 8. d3 {[%clk 0:02:56.1]} 8...
a6 {[%clk 0:02:39.6]} 9. a4 {[%clk 0:02:54.9]} 9... gxf5 {[%clk 0:02:37.5]} 10.
Qe1 {[%clk 0:02:52.8]} 10... fxe4 {[%clk 0:02:37.4]} 11. dxe4 {[%clk 0:02:53.3]}
11... Nd4 {[%clk 0:02:13.3]} 12. Qh4 {[%clk 0:02:48.3]} 12... Nxf3+ {[%clk
0:01:57.1]} 13. Rxf3 {[%clk 0:02:42.4]} 13... Be6 {[%clk 0:01:52.1]} 14. Bh6
{[%clk 0:02:09.6]} 14... Bxh6 {[%clk 0:00:55.1]} 15. Qxh6 {[%clk 0:02:07.5]}
15... Kh8 {[%clk 0:00:54.8]} 16. Bd3 {[%clk 0:00:54.3]} 16... Ng4 {[%clk
0:00:40.6]} 17. Qh4 {[%clk 0:00:52.8]} 17... Ne5 {[%clk 0:00:36.8]} 18. Rg3
{[%clk 0:00:38.2]} 18... Rg8 {[%clk 0:00:30.8]} 19. Rxg8+ {[%clk 0:00:31.8]}
19... Qxg8 {[%clk 0:00:31.7]} 20. Qxe7 {[%clk 0:00:32]} 20... Qg7 {[%clk
0:00:19.5]} 21. Qxd6 {[%clk 0:00:28.9]} 21... Rg8 {[%clk 0:00:19.8]} 22. Bf1
{[%clk 0:00:21.1]} 22... h5 {[%clk 0:00:17.7]} 23. Ne2 {[%clk 0:00:18.5]} 23...
h4 {[%clk 0:00:16.5]} 24. h3 {[%clk 0:00:15.8]} 24... Bxh3 {[%clk 0:00:16.2]}
25. Nf4 {[%clk 0:00:15.8]} 25... Bxg2 {[%clk 0:00:15.6]} 26. Bxg2 {[%clk
0:00:12.3]} 26... h3 {[%clk 0:00:16.1]} 27. Qd1 {[%clk 0:00:08.5]} 27... Qg5
{[%clk 0:00:05.1]} 28. Qh5+ {[%clk 0:00:07.6]} 28... Qxh5 {[%clk 0:00:05.1]} 29.
Nxh5 {[%clk 0:00:08.5]} 29... Rxg2+ {[%clk 0:00:05.3]} 30. Kh1 {[%clk
0:00:08.9]} 30... Nf3 {[%clk 0:00:05.2]} 31. Rf1 {[%clk 0:00:02.6]} 31... Rh2#
{[%clk 0:00:06.1]} 0-1

[Event "Late-Titled-Tuesday-Blitz-June-04-2024"]
[Site "Chess.com"]
[Date "2024.06.04"]
[Round "10"]
[White "cthake"]
[Black "shirovin"]
[Result "1/2-1/2"]
[WhiteElo "1756"]
[BlackElo "2092"]
[TimeControl "180+1"]
[EndTime "15:54:48 PDT"]
[Termination "Game drawn by repetition"]

1. c4 {[%clk 0:03:00.9]} 1... f5 {[%clk 0:02:58.1]} 2. Nc3 {[%clk 0:02:59.5]}
2... Nf6 {[%clk 0:02:58.6]} 3. g3 {[%clk 0:02:59.4]} 3... g6 {[%clk 0:02:58.1]}
4. Bg2 {[%clk 0:02:59.4]} 4... Bg7 {[%clk 0:02:58.6]} 5. e3 {[%clk 0:02:58.2]}
5... O-O {[%clk 0:02:59]} 6. d4 {[%clk 0:02:57.7]} 6... d6 {[%clk 0:02:58.8]} 7.
Nge2 {[%clk 0:02:51.3]} 7... Qe8 {[%clk 0:02:58.4]} 8. O-O {[%clk 0:02:43.4]}
8... e5 {[%clk 0:02:57.2]} 9. Nd5 {[%clk 0:02:24.6]} 9... Nxd5 {[%clk
0:02:54.6]} 10. Bxd5+ {[%clk 0:02:23]} 10... Kh8 {[%clk 0:02:53.9]} 11. dxe5
{[%clk 0:02:11.3]} 11... dxe5 {[%clk 0:02:51.1]} 12. Qb3 {[%clk 0:02:03.3]}
12... c6 {[%clk 0:02:50.4]} 13. Bg2 {[%clk 0:02:02.7]} 13... Na6 {[%clk
0:02:49.1]} 14. Bd2 {[%clk 0:01:56]} 14... Nc5 {[%clk 0:02:47.9]} 15. Qc2 {[%clk
0:01:55.8]} 15... Be6 {[%clk 0:02:33.6]} 16. Rac1 {[%clk 0:01:41.9]} 16... Rd8
{[%clk 0:02:32.2]} 17. b3 {[%clk 0:01:32.8]} 17... Nd3 {[%clk 0:02:30.9]} 18.
Rcd1 {[%clk 0:01:31.5]} 18... e4 {[%clk 0:02:30.7]} 19. Bc3 {[%clk 0:01:28.6]}
19... Qe7 {[%clk 0:02:08.1]} 20. Nf4 {[%clk 0:01:24.1]} 20... Bg8 {[%clk
0:02:06.2]} 21. Bxg7+ {[%clk 0:01:21.1]} 21... Qxg7 {[%clk 0:02:02.7]} 22. Nxd3
{[%clk 0:01:20.6]} 22... exd3 {[%clk 0:01:58.6]} 23. Rxd3 {[%clk 0:01:20.7]}
23... Rde8 {[%clk 0:01:45.4]} 24. Rfd1 {[%clk 0:01:20.3]} 24... Re7 {[%clk
0:01:45.2]} 25. h4 {[%clk 0:01:14]} 25... Rfe8 {[%clk 0:01:35.6]} 26. Qc3 {[%clk
0:01:11]} 26... Qxc3 {[%clk 0:01:33.6]} 27. Rxc3 {[%clk 0:01:11.2]} 27... a5
{[%clk 0:01:31.2]} 28. Rcd3 {[%clk 0:01:09.4]} 28... a4 {[%clk 0:01:29.6]} 29.
Rd7 {[%clk 0:01:07.2]} 29... Kg7 {[%clk 0:01:25.1]} 30. R1d2 {[%clk 0:00:58.1]}
30... Be6 {[%clk 0:01:11.6]} 31. Rxe7+ {[%clk 0:00:55.5]} 31... Rxe7 {[%clk
0:01:11.2]} 32. Rd8 {[%clk 0:00:53.3]} 32... Kf6 {[%clk 0:01:02]} 33. Kf1 {[%clk
0:00:49.8]} 33... axb3 {[%clk 0:00:53.4]} 34. axb3 {[%clk 0:00:48.9]} 34... b5
{[%clk 0:00:52.2]} 35. Bxc6 {[%clk 0:00:43.2]} 35... bxc4 {[%clk 0:00:51.9]} 36.
bxc4 {[%clk 0:00:43.2]} 36... Bxc4+ {[%clk 0:00:51.5]} 37. Kg2 {[%clk
0:00:40.6]} 37... Rc7 {[%clk 0:00:50.3]} 38. Bf3 {[%clk 0:00:39]} 38... h6
{[%clk 0:00:39.7]} 39. Rd6+ {[%clk 0:00:37.5]} 39... Kg7 {[%clk 0:00:33.3]} 40.
Bd5 {[%clk 0:00:37.4]} 40... Bb5 {[%clk 0:00:24.5]} 41. Bf3 {[%clk 0:00:36.5]}
41... Rc1 {[%clk 0:00:23.1]} 42. Rd1 {[%clk 0:00:29.5]} 42... Rc2 {[%clk
0:00:20.3]} 43. Rd5 {[%clk 0:00:26]} 43... Bc4 {[%clk 0:00:18.9]} 44. Rd7+
{[%clk 0:00:25.7]} 44... Kf6 {[%clk 0:00:18.2]} 45. Rd6+ {[%clk 0:00:25.4]}
45... Kg7 {[%clk 0:00:18.2]} 46. Rd7+ {[%clk 0:00:25.7]} 46... Kf6 {[%clk
0:00:18]} 47. Rd6+ {[%clk 0:00:26.1]} 47... Kg7 {[%clk 0:00:14.6]} 48. Rd7+
{[%clk 0:00:26.3]} 1/2-1/2

[Event "Late-Titled-Tuesday-Blitz-June-04-2024"]
[Site "Chess.com"]
[Date "2024.06.04"]
[Round "10"]
[White "th3d4rkness"]
[Black "Navyblue1"]
[Result "0-1"]
[WhiteElo "2153"]
[BlackElo "2200"]
[TimeControl "180+1"]
[EndTime "15:54:49 PDT"]
[Termination "Navyblue1 won on time"]

1. e4 {[%clk 0:03:00.9]} 1... c5 {[%clk 0:02:58.8]} 2. Nc3 {[%clk 0:03:00.2]}
2... d6 {[%clk 0:02:51.3]} 3. d4 {[%clk 0:02:59.3]} 3... cxd4 {[%clk 0:02:50.2]}
4. Qxd4 {[%clk 0:03:00.1]} 4... a6 {[%clk 0:02:49.8]} 5. b3 {[%clk 0:02:57.7]}
5... Nc6 {[%clk 0:02:49.1]} 6. Qd2 {[%clk 0:02:57.4]} 6... Nf6 {[%clk
0:02:47.7]} 7. Bb2 {[%clk 0:02:57.5]} 7... g6 {[%clk 0:02:48]} 8. O-O-O {[%clk
0:02:56.9]} 8... Qa5 {[%clk 0:02:45.8]} 9. Kb1 {[%clk 0:02:55.2]} 9... Bg7
{[%clk 0:02:45.3]} 10. f3 {[%clk 0:02:42.4]} 10... O-O {[%clk 0:02:42.6]} 11. g4
{[%clk 0:02:41.4]} 11... b5 {[%clk 0:02:22.2]} 12. h4 {[%clk 0:02:37.3]} 12...
b4 {[%clk 0:02:09.5]} 13. Nd5 {[%clk 0:02:36]} 13... Nxd5 {[%clk 0:02:08]} 14.
exd5 {[%clk 0:02:33.6]} 14... Bc3 {[%clk 0:01:59.8]} 15. Qc1 {[%clk 0:02:15.9]}
15... Ne5 {[%clk 0:01:52.1]} 16. h5 {[%clk 0:02:00.9]} 16... Bxb2 {[%clk
0:01:49.5]} 17. Qxb2 {[%clk 0:01:57.4]} 17... Qc5 {[%clk 0:01:39.3]} 18. Be2
{[%clk 0:01:35.9]} 18... a5 {[%clk 0:01:19.3]} 19. hxg6 {[%clk 0:01:12.4]} 19...
fxg6 {[%clk 0:01:16.4]} 20. Nh3 {[%clk 0:01:06.6]} 20... Qe3 {[%clk 0:01:00.7]}
21. f4 {[%clk 0:00:41.2]} 21... Qxe2 {[%clk 0:00:51.7]} 22. fxe5 {[%clk
0:00:39.2]} 22... Qxe5 {[%clk 0:00:49.2]} 23. Qxe5 {[%clk 0:00:37.6]} 23... dxe5
{[%clk 0:00:50.1]} 24. Ng5 {[%clk 0:00:30.3]} 24... Bxg4 {[%clk 0:00:46.7]} 25.
Rde1 {[%clk 0:00:30.2]} 25... Bh5 {[%clk 0:00:44.6]} 26. Rxe5 {[%clk 0:00:29]}
26... Rfd8 {[%clk 0:00:28.9]} 27. Ne6 {[%clk 0:00:24.3]} 27... Rd6 {[%clk
0:00:20.6]} 28. Rg1 {[%clk 0:00:20.1]} 28... Kh8 {[%clk 0:00:20.1]} 29. Ng5
{[%clk 0:00:16.7]} 29... Kg8 {[%clk 0:00:17.6]} 30. Rge1 {[%clk 0:00:14.7]}
30... Ra7 {[%clk 0:00:16.9]} 31. c4 {[%clk 0:00:13.2]} 31... bxc3 {[%clk
0:00:16.1]} 32. Kc2 {[%clk 0:00:13]} 32... Rad7 {[%clk 0:00:15.9]} 33. Rxe7
{[%clk 0:00:08.4]} 33... Rxd5 {[%clk 0:00:15.5]} 34. Re8+ {[%clk 0:00:05.7]}
34... Kg7 {[%clk 0:00:15.4]} 35. Ne6+ {[%clk 0:00:05.5]} 35... Kh6 {[%clk
0:00:15.5]} 36. Kxc3 {[%clk 0:00:02.1]} 36... Rd3+ {[%clk 0:00:15.5]} 37. Kc4
{[%clk 0:00:01.5]} 37... Rd2 {[%clk 0:00:15]} 0-1

[Event "Late-Titled-Tuesday-Blitz-June-04-2024"]
[Site "Chess.com"]
[Date "2024.06.04"]
[Round "10"]
[White "Msb2"]
[Black "FXDon77"]
[Result "0-1"]
[WhiteElo "3026"]
[BlackElo "2887"]
[TimeControl "180+1"]
[EndTime "15:54:54 PDT"]
[Termination "FXDon77 won by checkmate"]

1. d4 {[%clk 0:03:00.9]} 1... Nf6 {[%clk 0:02:59.9]} 2. c4 {[%clk 0:03:01.6]}
2... e6 {[%clk 0:03:00.4]} 3. Nc3 {[%clk 0:03:02.2]} 3... Bb4 {[%clk 0:02:59.8]}
4. e3 {[%clk 0:03:02.7]} 4... O-O {[%clk 0:02:57.3]} 5. Bd2 {[%clk 0:03:03.2]}
5... d5 {[%clk 0:02:53.6]} 6. Nf3 {[%clk 0:03:03.5]} 6... b6 {[%clk 0:02:47.2]}
7. cxd5 {[%clk 0:03:03.8]} 7... exd5 {[%clk 0:02:47.5]} 8. Rc1 {[%clk
0:03:04.4]} 8... Re8 {[%clk 0:02:42.7]} 9. Ne5 {[%clk 0:03:03.5]} 9... Bb7
{[%clk 0:02:37.2]} 10. Bd3 {[%clk 0:03:03.7]} 10... Bf8 {[%clk 0:02:29]} 11. f4
{[%clk 0:03:04]} 11... c5 {[%clk 0:02:28.9]} 12. g4 {[%clk 0:03:04.6]} 12... Ne4
{[%clk 0:02:21.6]} 13. g5 {[%clk 0:02:59.3]} 13... cxd4 {[%clk 0:02:10.5]} 14.
exd4 {[%clk 0:02:59]} 14... Nc6 {[%clk 0:01:59.2]} 15. Be3 {[%clk 0:02:59.1]}
15... Nxe5 {[%clk 0:01:53.3]} 16. fxe5 {[%clk 0:02:57.8]} 16... Nxg5 {[%clk
0:01:14.4]} 17. O-O {[%clk 0:02:50.6]} 17... Ne4 {[%clk 0:01:09.9]} 18. Qf3
{[%clk 0:02:41.9]} 18... Qe7 {[%clk 0:01:05.4]} 19. Nxd5 {[%clk 0:02:31.8]}
19... Bxd5 {[%clk 0:01:01.3]} 20. Bxe4 {[%clk 0:02:32.5]} 20... Bxe4 {[%clk
0:01:01.6]} 21. Qxe4 {[%clk 0:02:33.4]} 21... Rac8 {[%clk 0:01:00.3]} 22. Rxc8
{[%clk 0:02:28.9]} 22... Rxc8 {[%clk 0:00:59.8]} 23. d5 {[%clk 0:02:29.2]} 23...
Re8 {[%clk 0:00:56.8]} 24. Qf5 {[%clk 0:02:21.9]} 24... g6 {[%clk 0:00:48.4]}
25. Qf3 {[%clk 0:02:08.4]} 25... Qxe5 {[%clk 0:00:42]} 26. Qxf7+ {[%clk
0:01:54.8]} 26... Kh8 {[%clk 0:00:41.8]} 27. Rf3 {[%clk 0:01:43.8]} 27... Bg7
{[%clk 0:00:38.1]} 28. d6 {[%clk 0:01:11.5]} 28... Rf8 {[%clk 0:00:30.9]} 29. d7
{[%clk 0:01:11.6]} 29... Qd6 {[%clk 0:00:15.7]} 30. Bf4 {[%clk 0:00:08.8]} 30...
Qd1+ {[%clk 0:00:14.9]} 31. Rf1 {[%clk 0:00:06.8]} 31... Qd4+ {[%clk 0:00:15.4]}
32. Be3 {[%clk 0:00:04.3]} 32... Qxe3+ {[%clk 0:00:14.3]} 33. Kh1 {[%clk
0:00:03.7]} 33... Qe4+ {[%clk 0:00:14.6]} 34. Rf3 {[%clk 0:00:03.7]} 34... Rxf7
{[%clk 0:00:09.9]} 35. d8=Q+ {[%clk 0:00:03.9]} 35... Bf8 {[%clk 0:00:10.6]} 36.
Kg2 {[%clk 0:00:01.9]} 36... Qxf3+ {[%clk 0:00:10.4]} 37. Kg1 {[%clk 0:00:02.8]}
37... Qf1# {[%clk 0:00:11.1]} 0-1